Department Family,Entity,Date,Expense Type,Expense Area,Supplier,Transaction Number,AP Amount
Department of Health,St. Helens&Knowsley Hospitals NHS Trust,30/09/2018,Blood Products,HAEM + BLOOD TRANSFUSION,NHS BLOOD & TRANSPLANT,28032392,"110,225.51"
Department of Health,St. Helens&Knowsley Hospitals NHS Trust,30/09/2018,Char Fund Contra Acc Curr,Balance Sheet,VODAFONE LTD,28055736,36
Department of Health,St. Helens&Knowsley Hospitals NHS Trust,9/30/2018,CNST contributions,CLINICAL NEGLIGENCE,,SSC NHSLA CNST,"971,118.00"
Department of Health,St. Helens&Knowsley Hospitals NHS Trust,30/09/2018,Computer Hardware Purch,Cyber Security,BT PLC,28114936,"37,179.29"
Department of Health,St. Helens&Knowsley Hospitals NHS Trust,30/09/2018,Computer Hardware Purch,HIS programme costs - shared services,EMIS (EGTON MEDICAL INFORMATION SYSTEMS LTD),27976536,"22,195.24"
Department of Health,St. Helens&Knowsley Hospitals NHS Trust,30/09/2018,Computer Hardware Purch,TRUST IT SYSTEMS,SYSTEM C HEALTHCARE LTD,27859325,"358,139.14"
Department of Health,St. Helens&Knowsley Hospitals NHS Trust,30/09/2018,Computer Hardware Purch,TRUST IT SYSTEMS,SYSTEM C HEALTHCARE LTD,27859335,"358,139.14"
Department of Health,St. Helens&Knowsley Hospitals NHS Trust,30/09/2018,Computer Software/License,INFORMATION DEPARTMENT,UNIVERSITY HOSPITAL BIRMINGHAM NHS FOUNDATION TRUST,27475659,"35,000.00"
Department of Health,St. Helens&Knowsley Hospitals NHS Trust,30/09/2018,Continence Products,COMMUNITY CONTINENCE SERVICE,ESSITY UK LTD,28076257,"47,163.12"
Department of Health,St. Helens&Knowsley Hospitals NHS Trust,30/09/2018,Data Lines,HIS programme costs - shared services,VIRGIN MEDIA BUSINESS LTD,27854749,"250,000.00"
Department of Health,St. Helens&Knowsley Hospitals NHS Trust,30/09/2018,Data Lines,HIS programme costs - shared services,VIRGIN MEDIA BUSINESS LTD,27854750,"-269,656.86"
Department of Health,St. Helens&Knowsley Hospitals NHS Trust,30/09/2018,Data Lines,HIS programme costs - shared services,VIRGIN MEDIA PAYMENTS LTD,27854748,"-250,000.00"
Department of Health,St. Helens&Knowsley Hospitals NHS Trust,30/09/2018,Primary Care Manual,FOUNDATION TRUST APPLICATION,ROYAL WOLVERHAMPTON HOSPITALS NHS TRUST (THE),27981209,"25,000.00"
Department of Health,St. Helens&Knowsley Hospitals NHS Trust,30/09/2018,Administration Fee,A + E MEDICAL STAFF WH,LIAISON FINANCIAL SERVICES LTD,27847184,"1,037.80"
Department of Health,St. Helens&Knowsley Hospitals NHS Trust,30/09/2018,Administration Fee,ACUTE MEDICAL UNIT,LIAISON FINANCIAL SERVICES LTD,27847184,338.63
Department of Health,St. Helens&Knowsley Hospitals NHS Trust,30/09/2018,Administration Fee,B + P MEDICAL STAFF,LIAISON FINANCIAL SERVICES LTD,27847184,157.31
Department of Health,St. Helens&Knowsley Hospitals NHS Trust,30/09/2018,Administration Fee,CARDIO-RESPIRATORY (ECG),LIAISON FINANCIAL SERVICES LTD,27847184,13.3
Department of Health,St. Helens&Knowsley Hospitals NHS Trust,30/09/2018,Administration Fee,CARDIOLOGY SNR MEDICAL,LIAISON FINANCIAL SERVICES LTD,27847184,665.79
Department of Health,St. Helens&Knowsley Hospitals NHS Trust,30/09/2018,Administration Fee,CARE OF ELDERLY MED STAFF,LIAISON FINANCIAL SERVICES LTD,27847184,36.54
Department of Health,St. Helens&Knowsley Hospitals NHS Trust,30/09/2018,Administration Fee,DERMATOLOGY,LIAISON FINANCIAL SERVICES LTD,27847184,624
Department of Health,St. Helens&Knowsley Hospitals NHS Trust,30/09/2018,Administration Fee,FRACTURE CLINIC,LIAISON FINANCIAL SERVICES LTD,27847184,169.48
Department of Health,St. Helens&Knowsley Hospitals NHS Trust,30/09/2018,Administration Fee,GEN MEDICINE MEDICAL STF,LIAISON FINANCIAL SERVICES LTD,27847184,298.97
Department of Health,St. Helens&Knowsley Hospitals NHS Trust,30/09/2018,Administration Fee,GENERAL SURGERY MEDICAL,LIAISON FINANCIAL SERVICES LTD,27847184,463.68
Department of Health,St. Helens&Knowsley Hospitals NHS Trust,30/09/2018,Administration Fee,NEWTON INTERMEDIATE CARE SERVICE,LIAISON FINANCIAL SERVICES LTD,27847184,46.14
Department of Health,St. Helens&Knowsley Hospitals NHS Trust,30/09/2018,Administration Fee,OBS + GYNAE MEDICAL STAFF,LIAISON FINANCIAL SERVICES LTD,27847184,813.03
Department of Health,St. Helens&Knowsley Hospitals NHS Trust,30/09/2018,Administration Fee,OPHTHALMOLOGY MEDICAL,LIAISON FINANCIAL SERVICES LTD,27847184,330.58
Department of Health,St. Helens&Knowsley Hospitals NHS Trust,30/09/2018,Administration Fee,PAEDIATRIC MEDICAL STAFF,LIAISON FINANCIAL SERVICES LTD,27847184,264.09
Department of Health,St. Helens&Knowsley Hospitals NHS Trust,30/09/2018,Administration Fee,PHARMACY GENERAL,LIAISON FINANCIAL SERVICES LTD,27847184,304.15
Department of Health,St. Helens&Knowsley Hospitals NHS Trust,30/09/2018,Administration Fee,RADIOLOGY MEDICAL STAFF,LIAISON FINANCIAL SERVICES LTD,27847184,364.09
Department of Health,St. Helens&Knowsley Hospitals NHS Trust,30/09/2018,Administration Fee,RESPIRATORY SNR MEDICAL,LIAISON FINANCIAL SERVICES LTD,27847184,400.15
Department of Health,St. Helens&Knowsley Hospitals NHS Trust,30/09/2018,Administration Fee,SEDDON SUITE TRAUMA REHAB UNIT,LIAISON FINANCIAL SERVICES LTD,27847184,201.53
Department of Health,St. Helens&Knowsley Hospitals NHS Trust,30/09/2018,Administration Fee,SOHT Blood Sciences,LIAISON FINANCIAL SERVICES LTD,27847184,63.97
Department of Health,St. Helens&Knowsley Hospitals NHS Trust,30/09/2018,Administration Fee,THEATRES MEDICAL STAFF,LIAISON FINANCIAL SERVICES LTD,27847184,292.53
Department of Health,St. Helens&Knowsley Hospitals NHS Trust,30/09/2018,Administration Fee,UROLOGY MEDICAL STAFF,LIAISON FINANCIAL SERVICES LTD,27847184,549.65
Department of Health,St. Helens&Knowsley Hospitals NHS Trust,30/09/2018,Administration Fee,A + E MEDICAL STAFF WH,LIAISON FINANCIAL SERVICES LTD,27874474,"1,815.89"
Department of Health,St. Helens&Knowsley Hospitals NHS Trust,30/09/2018,Administration Fee,ACUTE MEDICAL UNIT,LIAISON FINANCIAL SERVICES LTD,27874474,508.29
Department of Health,St. Helens&Knowsley Hospitals NHS Trust,30/09/2018,Administration Fee,B + P MEDICAL STAFF,LIAISON FINANCIAL SERVICES LTD,27874474,398.08
Department of Health,St. Helens&Knowsley Hospitals NHS Trust,30/09/2018,Administration Fee,CARE OF ELDERLY MED STAFF,LIAISON FINANCIAL SERVICES LTD,27874474,105.8
Department of Health,St. Helens&Knowsley Hospitals NHS Trust,30/09/2018,Administration Fee,DERMATOLOGY,LIAISON FINANCIAL SERVICES LTD,27874474,780
Department of Health,St. Helens&Knowsley Hospitals NHS Trust,30/09/2018,Administration Fee,ENT MEDICAL STAFF,LIAISON FINANCIAL SERVICES LTD,27874474,189.39
Department of Health,St. Helens&Knowsley Hospitals NHS Trust,30/09/2018,Administration Fee,GEN MEDICINE MEDICAL STF,LIAISON FINANCIAL SERVICES LTD,27874474,68.62
Department of Health,St. Helens&Knowsley Hospitals NHS Trust,30/09/2018,Administration Fee,GENERAL SURGERY MEDICAL,LIAISON FINANCIAL SERVICES LTD,27874474,136.61
Department of Health,St. Helens&Knowsley Hospitals NHS Trust,30/09/2018,Administration Fee,OBS + GYNAE MEDICAL STAFF,LIAISON FINANCIAL SERVICES LTD,27874474,198.22
Department of Health,St. Helens&Knowsley Hospitals NHS Trust,30/09/2018,Administration Fee,OPHTHALMOLOGY MEDICAL,LIAISON FINANCIAL SERVICES LTD,27874474,204.03
Department of Health,St. Helens&Knowsley Hospitals NHS Trust,30/09/2018,Administration Fee,ORTHOPAEDIC MEDICAL STAFF,LIAISON FINANCIAL SERVICES LTD,27874474,139.79
Department of Health,St. Helens&Knowsley Hospitals NHS Trust,30/09/2018,Administration Fee,PAEDIATRIC MEDICAL STAFF,LIAISON FINANCIAL SERVICES LTD,27874474,141.73
Department of Health,St. Helens&Knowsley Hospitals NHS Trust,30/09/2018,Administration Fee,PHARMACY GENERAL,LIAISON FINANCIAL SERVICES LTD,27874474,325.96
Department of Health,St. Helens&Knowsley Hospitals NHS Trust,30/09/2018,Administration Fee,RADIOLOGY MEDICAL STAFF,LIAISON FINANCIAL SERVICES LTD,27874474,318.84
Department of Health,St. Helens&Knowsley Hospitals NHS Trust,30/09/2018,Administration Fee,RESPIRATORY SNR MEDICAL,LIAISON FINANCIAL SERVICES LTD,27874474,513.78
Department of Health,St. Helens&Knowsley Hospitals NHS Trust,30/09/2018,Administration Fee,THEATRES MEDICAL STAFF,LIAISON FINANCIAL SERVICES LTD,27874474,643.65
Department of Health,St. Helens&Knowsley Hospitals NHS Trust,30/09/2018,Administration Fee,A + E MEDICAL STAFF WH,LIAISON FINANCIAL SERVICES LTD,27931327,913.82
Department of Health,St. Helens&Knowsley Hospitals NHS Trust,30/09/2018,Administration Fee,ACUTE MEDICAL UNIT,LIAISON FINANCIAL SERVICES LTD,27931327,275.63
Department of Health,St. Helens&Knowsley Hospitals NHS Trust,30/09/2018,Administration Fee,B + P MEDICAL STAFF,LIAISON FINANCIAL SERVICES LTD,27931327,224.06
Department of Health,St. Helens&Knowsley Hospitals NHS Trust,30/09/2018,Administration Fee,CARDIO-RESPIRATORY (ECG),LIAISON FINANCIAL SERVICES LTD,27931327,17.85
Department of Health,St. Helens&Knowsley Hospitals NHS Trust,30/09/2018,Administration Fee,CARDIOLOGY SNR MEDICAL,LIAISON FINANCIAL SERVICES LTD,27931327,332.9
Department of Health,St. Helens&Knowsley Hospitals NHS Trust,30/09/2018,Administration Fee,CARE OF ELDERLY MED STAFF,LIAISON FINANCIAL SERVICES LTD,27931327,261.28
Department of Health,St. Helens&Knowsley Hospitals NHS Trust,30/09/2018,Administration Fee,DERMATOLOGY,LIAISON FINANCIAL SERVICES LTD,27931327,858
Department of Health,St. Helens&Knowsley Hospitals NHS Trust,30/09/2018,Administration Fee,GEN MEDICINE MEDICAL STF,LIAISON FINANCIAL SERVICES LTD,27931327,310.49
Department of Health,St. Helens&Knowsley Hospitals NHS Trust,30/09/2018,Administration Fee,OBS + GYNAE MEDICAL STAFF,LIAISON FINANCIAL SERVICES LTD,27931327,234.6
Department of Health,St. Helens&Knowsley Hospitals NHS Trust,30/09/2018,Administration Fee,OPHTHALMOLOGY MEDICAL,LIAISON FINANCIAL SERVICES LTD,27931327,423.79
Department of Health,St. Helens&Knowsley Hospitals NHS Trust,30/09/2018,Administration Fee,PAEDIATRIC MEDICAL STAFF,LIAISON FINANCIAL SERVICES LTD,27931327,161.66
Department of Health,St. Helens&Knowsley Hospitals NHS Trust,30/09/2018,Administration Fee,PHARMACY GENERAL,LIAISON FINANCIAL SERVICES LTD,27931327,351.68
Department of Health,St. Helens&Knowsley Hospitals NHS Trust,30/09/2018,Administration Fee,RADIOLOGY MEDICAL STAFF,LIAISON FINANCIAL SERVICES LTD,27931327,364.09
Department of Health,St. Helens&Knowsley Hospitals NHS Trust,30/09/2018,Administration Fee,RESPIRATORY SNR MEDICAL,LIAISON FINANCIAL SERVICES LTD,27931327,244.9
Department of Health,St. Helens&Knowsley Hospitals NHS Trust,30/09/2018,Administration Fee,SEDDON SUITE TRAUMA REHAB UNIT,LIAISON FINANCIAL SERVICES LTD,27931327,126.38
Department of Health,St. Helens&Knowsley Hospitals NHS Trust,30/09/2018,Administration Fee,SOHT Blood Sciences,LIAISON FINANCIAL SERVICES LTD,27931327,147.27
Department of Health,St. Helens&Knowsley Hospitals NHS Trust,30/09/2018,Administration Fee,THEATRES MEDICAL STAFF,LIAISON FINANCIAL SERVICES LTD,27931327,902.44
Department of Health,St. Helens&Knowsley Hospitals NHS Trust,30/09/2018,Administration Fee,UROLOGY MEDICAL STAFF,LIAISON FINANCIAL SERVICES LTD,27931327,52.61
Department of Health,St. Helens&Knowsley Hospitals NHS Trust,30/09/2018,Administration Fee,A + E MEDICAL STAFF WH,LIAISON FINANCIAL SERVICES LTD,27952649,805.49
Department of Health,St. Helens&Knowsley Hospitals NHS Trust,30/09/2018,Administration Fee,ACUTE MEDICAL UNIT,LIAISON FINANCIAL SERVICES LTD,27952649,448.88
Department of Health,St. Helens&Knowsley Hospitals NHS Trust,30/09/2018,Administration Fee,B + P MEDICAL STAFF,LIAISON FINANCIAL SERVICES LTD,27952649,730.84
Department of Health,St. Helens&Knowsley Hospitals NHS Trust,30/09/2018,Administration Fee,CARDIO-RESPIRATORY (ECG),LIAISON FINANCIAL SERVICES LTD,27952649,59.41
Department of Health,St. Helens&Knowsley Hospitals NHS Trust,30/09/2018,Administration Fee,CARDIOLOGY SNR MEDICAL,LIAISON FINANCIAL SERVICES LTD,27952649,583.82
Department of Health,St. Helens&Knowsley Hospitals NHS Trust,30/09/2018,Administration Fee,CARE OF ELDERLY MED STAFF,LIAISON FINANCIAL SERVICES LTD,27952649,113.13
Department of Health,St. Helens&Knowsley Hospitals NHS Trust,30/09/2018,Administration Fee,DERMATOLOGY,LIAISON FINANCIAL SERVICES LTD,27952649,390
Department of Health,St. Helens&Knowsley Hospitals NHS Trust,30/09/2018,Administration Fee,GEN MEDICINE MEDICAL STF,LIAISON FINANCIAL SERVICES LTD,27952649,115.24
Department of Health,St. Helens&Knowsley Hospitals NHS Trust,30/09/2018,Administration Fee,GENERAL SURGERY MEDICAL,LIAISON FINANCIAL SERVICES LTD,27952649,"1,364.67"
Department of Health,St. Helens&Knowsley Hospitals NHS Trust,30/09/2018,Administration Fee,OBS + GYNAE MEDICAL STAFF,LIAISON FINANCIAL SERVICES LTD,27952649,253.52
Department of Health,St. Helens&Knowsley Hospitals NHS Trust,30/09/2018,Administration Fee,OPHTHALMOLOGY MEDICAL,LIAISON FINANCIAL SERVICES LTD,27952649,421.4
Department of Health,St. Helens&Knowsley Hospitals NHS Trust,30/09/2018,Administration Fee,PAEDIATRIC MEDICAL STAFF,LIAISON FINANCIAL SERVICES LTD,27952649,199.02
Department of Health,St. Helens&Knowsley Hospitals NHS Trust,30/09/2018,Administration Fee,PHARMACY GENERAL,LIAISON FINANCIAL SERVICES LTD,27952649,188.34
Department of Health,St. Helens&Knowsley Hospitals NHS Trust,30/09/2018,Administration Fee,RESPIRATORY SNR MEDICAL,LIAISON FINANCIAL SERVICES LTD,27952649,409.28
Department of Health,St. Helens&Knowsley Hospitals NHS Trust,30/09/2018,Administration Fee,SEDDON SUITE TRAUMA REHAB UNIT,LIAISON FINANCIAL SERVICES LTD,27952649,126.38
Department of Health,St. Helens&Knowsley Hospitals NHS Trust,30/09/2018,Administration Fee,SOHT Blood Sciences,LIAISON FINANCIAL SERVICES LTD,27952649,388.6
Department of Health,St. Helens&Knowsley Hospitals NHS Trust,30/09/2018,Administration Fee,THEATRES MEDICAL STAFF,LIAISON FINANCIAL SERVICES LTD,27952649,364.47
Department of Health,St. Helens&Knowsley Hospitals NHS Trust,30/09/2018,Administration Fee,A + E MEDICAL STAFF WH,ST HELENS ROTA,28076272,"42,735.00"
Department of Health,St. Helens&Knowsley Hospitals NHS Trust,30/09/2018,Laboratory Chemicals,HAEM + BLOOD TRANSFUSION,SYSMEX UK LTD,27898275,"98,404.78"
Department of Health,St. Helens&Knowsley Hospitals NHS Trust,30/09/2018,Lease Rents,PFI DESIGN + CONSTRUCTION,EDDISONS COMMERCIAL PROPERTY MANAGEMENT LTD,28128652,"49,578.08"
Department of Health,St. Helens&Knowsley Hospitals NHS Trust,30/09/2018,Lease Rents,INFORMATION DEPARTMENT,OAKMERE ESTATES (LIVERPOOL) LTD,27897037,"28,947.00"
Department of Health,St. Helens&Knowsley Hospitals NHS Trust,30/09/2018,Lease Rents,INFORMATION DEPARTMENT,OAKMERE ESTATES (LIVERPOOL) LTD,27897040,"-28,947.00"
Department of Health,St. Helens&Knowsley Hospitals NHS Trust,30/09/2018,Legal / Prof Fees,NURSING ADMINISTRATION,HILL DICKINSON LLP,27998246,"27,553.85"
Department of Health,St. Helens&Knowsley Hospitals NHS Trust,30/09/2018,Med & Surg Equip General,DELIVERY SUITE,JOERNS HEALTHCARE LTD,27874908,"2,463.23"
Department of Health,St. Helens&Knowsley Hospitals NHS Trust,30/09/2018,Med & Surg Equip General,ICU NURSING WHISTON,JOERNS HEALTHCARE LTD,27874908,"2,463.23"
Department of Health,St. Helens&Knowsley Hospitals NHS Trust,30/09/2018,Med & Surg Equip General,NEWTON INTERMEDIATE CARE SERVICE,JOERNS HEALTHCARE LTD,27874908,"2,463.24"
Department of Health,St. Helens&Knowsley Hospitals NHS Trust,30/09/2018,Med & Surg Equip General,WARD 2A HAEMATOLOGY,JOERNS HEALTHCARE LTD,27874908,"2,463.27"
Department of Health,St. Helens&Knowsley Hospitals NHS Trust,30/09/2018,Med & Surg Equip General,WARD 2C RESPIRATORY,JOERNS HEALTHCARE LTD,27874908,"2,463.22"
Department of Health,St. Helens&Knowsley Hospitals NHS Trust,30/09/2018,Med & Surg Equip General,WARD 2D GENERAL MEDICINE,JOERNS HEALTHCARE LTD,27874908,"2,463.23"
Department of Health,St. Helens&Knowsley Hospitals NHS Trust,30/09/2018,Med & Surg Equip General,WARD 3ALPHA ORTHOPAEDICS,JOERNS HEALTHCARE LTD,27874908,"4,926.45"
Department of Health,St. Helens&Knowsley Hospitals NHS Trust,30/09/2018,Med & Surg Equip General,WARD 3B ORTHOPAEDICS,JOERNS HEALTHCARE LTD,27874908,"2,463.22"
Department of Health,St. Helens&Knowsley Hospitals NHS Trust,30/09/2018,Med & Surg Equip General,WARD 3E GYNAECOLOGY,JOERNS HEALTHCARE LTD,27874908,"2,463.23"
Department of Health,St. Helens&Knowsley Hospitals NHS Trust,30/09/2018,Med & Surg Equip General,WARD 3E ORTHOPAEDICS,JOERNS HEALTHCARE LTD,27874908,"2,463.22"
Department of Health,St. Helens&Knowsley Hospitals NHS Trust,30/09/2018,Med & Surg Equip General,WARD 5A CARE OF THE ELDERLY,JOERNS HEALTHCARE LTD,27874908,"2,463.23"
Department of Health,St. Helens&Knowsley Hospitals NHS Trust,30/09/2018,Med & Surg Equip General,WARD 5D ASU,JOERNS HEALTHCARE LTD,27874908,"2,463.23"
Department of Health,St. Helens&Knowsley Hospitals NHS Trust,30/09/2018,Miscellaneous Expenditure,PFI ENABLING WORKS,NEW HOSPITALS (ST HELENS & KNOWSLEY) LTD,28102654,"1,116,898.85"
Department of Health,St. Helens&Knowsley Hospitals NHS Trust,30/09/2018,Miscellaneous Expenditure,HSDU WHISTON,SYNERGY HEALTH (UK) LTD,27937828,"167,509.68"
Department of Health,St. Helens&Knowsley Hospitals NHS Trust,30/09/2018,Mobile Phones,A + E MEDICAL STAFF WH,VODAFONE LTD,28055736,108
Department of Health,St. Helens&Knowsley Hospitals NHS Trust,30/09/2018,Mobile Phones,ACUTE KIDNEY INJURY SERVICE,VODAFONE LTD,28055736,38.54
Department of Health,St. Helens&Knowsley Hospitals NHS Trust,30/09/2018,Mobile Phones,ACUTE MEDICAL UNIT,VODAFONE LTD,28055736,453.25
Department of Health,St. Helens&Knowsley Hospitals NHS Trust,30/09/2018,Mobile Phones,AMU NURSE SPECIALISTS,VODAFONE LTD,28055736,265.21
Department of Health,St. Helens&Knowsley Hospitals NHS Trust,30/09/2018,Mobile Phones,B + P MEDICAL STAFF,VODAFONE LTD,28055736,36
Department of Health,St. Helens&Knowsley Hospitals NHS Trust,30/09/2018,Mobile Phones,BED MANAGEMENT,VODAFONE LTD,28055736,45
Department of Health,St. Helens&Knowsley Hospitals NHS Trust,30/09/2018,Mobile Phones,C.O.P.D SERVICE (KPCT),VODAFONE LTD,28055736,9
Department of Health,St. Helens&Knowsley Hospitals NHS Trust,30/09/2018,Mobile Phones,C.O.P.D SERVICE (STHPCT),VODAFONE LTD,28055736,117
Department of Health,St. Helens&Knowsley Hospitals NHS Trust,30/09/2018,Mobile Phones,CANCER NURSE SPEC MCG,VODAFONE LTD,28055736,113.04
Department of Health,St. Helens&Knowsley Hospitals NHS Trust,30/09/2018,Mobile Phones,CANCER NURSE SPEC SCG,VODAFONE LTD,28055736,42.73
Department of Health,St. Helens&Knowsley Hospitals NHS Trust,30/09/2018,Mobile Phones,CANCER SVS CO-ORDINATION,VODAFONE LTD,28055736,222
Department of Health,St. Helens&Knowsley Hospitals NHS Trust,30/09/2018,Mobile Phones,CARDIO-RESPIRATORY (ECG),VODAFONE LTD,28055736,45
Department of Health,St. Helens&Knowsley Hospitals NHS Trust,30/09/2018,Mobile Phones,CARDIOLOGY NURSING,VODAFONE LTD,28055736,185.12
Department of Health,St. Helens&Knowsley Hospitals NHS Trust,30/09/2018,Mobile Phones,CARE OF ELDERLY MED STAFF,VODAFONE LTD,28055736,558.86
Department of Health,St. Helens&Knowsley Hospitals NHS Trust,30/09/2018,Mobile Phones,CHAIRMAN'S OFFICE,VODAFONE LTD,28055736,255.85
Department of Health,St. Helens&Knowsley Hospitals NHS Trust,30/09/2018,Mobile Phones,CHEMICAL PATHOLOGY DEPT,VODAFONE LTD,28055736,45
Department of Health,St. Helens&Knowsley Hospitals NHS Trust,30/09/2018,Mobile Phones,CHIEF EXECUTIVE'S OFFICE,VODAFONE LTD,28055736,271.46
Department of Health,St. Helens&Knowsley Hospitals NHS Trust,30/09/2018,Mobile Phones,CLINICAL PSYCHOLOGY,VODAFONE LTD,28055736,36
Department of Health,St. Helens&Knowsley Hospitals NHS Trust,30/09/2018,Mobile Phones,CLINICAL SUPPORT DIV MGMT,VODAFONE LTD,28055736,36
Department of Health,St. Helens&Knowsley Hospitals NHS Trust,30/09/2018,Mobile Phones,COE NURSE SPECIALISTS,VODAFONE LTD,28055736,153
Department of Health,St. Helens&Knowsley Hospitals NHS Trust,30/09/2018,Mobile Phones,COLD DECONTAMINATION WHISTON,VODAFONE LTD,28055736,81
Department of Health,St. Helens&Knowsley Hospitals NHS Trust,30/09/2018,Mobile Phones,COMMUNITY MIDWIFERY,VODAFONE LTD,28055736,"1,752.96"
Department of Health,St. Helens&Knowsley Hospitals NHS Trust,30/09/2018,Mobile Phones,Cancer Core Staff and Non-Pay,VODAFONE LTD,28055736,57.29
Department of Health,St. Helens&Knowsley Hospitals NHS Trust,30/09/2018,Mobile Phones,Cold Decontamination,VODAFONE LTD,28055736,36
Department of Health,St. Helens&Knowsley Hospitals NHS Trust,30/09/2018,Mobile Phones,DIABETES NURSING,VODAFONE LTD,28055736,84.88
Department of Health,St. Helens&Knowsley Hospitals NHS Trust,30/09/2018,Mobile Phones,DIABETES SNR MEDICAL,VODAFONE LTD,28055736,108
Department of Health,St. Helens&Knowsley Hospitals NHS Trust,30/09/2018,Mobile Phones,DIABETES STP,VODAFONE LTD,28055736,432.72
Department of Health,St. Helens&Knowsley Hospitals NHS Trust,30/09/2018,Mobile Phones,Digital Solutions,VODAFONE LTD,28055736,81
Department of Health,St. Helens&Knowsley Hospitals NHS Trust,30/09/2018,Mobile Phones,EAST MIDLANDS PROJECT,VODAFONE LTD,28055736,139.2
Department of Health,St. Helens&Knowsley Hospitals NHS Trust,30/09/2018,Mobile Phones,ENT MEDICAL STAFF,VODAFONE LTD,28055736,36
Department of Health,St. Helens&Knowsley Hospitals NHS Trust,30/09/2018,Mobile Phones,ESTATE SURVEY SECTION,VODAFONE LTD,28055736,36
Department of Health,St. Helens&Knowsley Hospitals NHS Trust,30/09/2018,Mobile Phones,EXECUTIVE PAYROLL,VODAFONE LTD,28055736,216.8
Department of Health,St. Helens&Knowsley Hospitals NHS Trust,30/09/2018,Mobile Phones,FACILITIES MANAGEMENT,VODAFONE LTD,28055736,189
Department of Health,St. Helens&Knowsley Hospitals NHS Trust,30/09/2018,Mobile Phones,FINANCE DIRECTORATE HQ,VODAFONE LTD,28055736,72
Department of Health,St. Helens&Knowsley Hospitals NHS Trust,30/09/2018,Mobile Phones,GASTROLOGY NURSING,VODAFONE LTD,28055736,252.12
Department of Health,St. Helens&Knowsley Hospitals NHS Trust,30/09/2018,Mobile Phones,GASTROLOGY SNR MEDICAL,VODAFONE LTD,28055736,228.19
Department of Health,St. Helens&Knowsley Hospitals NHS Trust,30/09/2018,Mobile Phones,GEN MEDICINE MEDICAL STF,VODAFONE LTD,28055736,72
Department of Health,St. Helens&Knowsley Hospitals NHS Trust,30/09/2018,Mobile Phones,GEN PATHOLOGY MED STAFF,VODAFONE LTD,28055736,36.36
Department of Health,St. Helens&Knowsley Hospitals NHS Trust,30/09/2018,Mobile Phones,GENERAL SURGERY MEDICAL,VODAFONE LTD,28055736,156.6
Department of Health,St. Helens&Knowsley Hospitals NHS Trust,30/09/2018,Mobile Phones,HAEM + BLOOD TRANSFUSION,VODAFONE LTD,28055736,18
Department of Health,St. Helens&Knowsley Hospitals NHS Trust,30/09/2018,Mobile Phones,HAEMATOLOGY MEDICAL,VODAFONE LTD,28055736,108.02
Department of Health,St. Helens&Knowsley Hospitals NHS Trust,30/09/2018,Mobile Phones,HAIRDRESSER ST HELENS,VODAFONE LTD,28055736,36.02
Department of Health,St. Helens&Knowsley Hospitals NHS Trust,30/09/2018,Mobile Phones,HIS programme costs - shared services,VODAFONE LTD,28055736,"3,907.25"
Department of Health,St. Helens&Knowsley Hospitals NHS Trust,30/09/2018,Mobile Phones,HISTOPATHOLOGY/MORTUARY,VODAFONE LTD,28055736,21.96
Department of Health,St. Helens&Knowsley Hospitals NHS Trust,30/09/2018,Mobile Phones,HSDU WHISTON,VODAFONE LTD,28055736,36
Department of Health,St. Helens&Knowsley Hospitals NHS Trust,30/09/2018,Mobile Phones,HUMAN RESOURCES,VODAFONE LTD,28055736,"1,068.10"
Department of Health,St. Helens&Knowsley Hospitals NHS Trust,30/09/2018,Mobile Phones,ICU MEDICAL STAFF WHISTON,VODAFONE LTD,28055736,219.6
Department of Health,St. Helens&Knowsley Hospitals NHS Trust,30/09/2018,Mobile Phones,ICU NURSING WHISTON,VODAFONE LTD,28055736,36
Department of Health,St. Helens&Knowsley Hospitals NHS Trust,30/09/2018,Mobile Phones,INFECTION CONTROL,VODAFONE LTD,28055736,63
Department of Health,St. Helens&Knowsley Hospitals NHS Trust,30/09/2018,Mobile Phones,INFORMATION DEPARTMENT,VODAFONE LTD,28055736,88.2
Department of Health,St. Helens&Knowsley Hospitals NHS Trust,30/09/2018,Mobile Phones,INNOVATION TEAM,VODAFONE LTD,28055736,36
Department of Health,St. Helens&Knowsley Hospitals NHS Trust,30/09/2018,Mobile Phones,LEADERSHIP & ORGANISATIONAL DEVELOPMENT,VODAFONE LTD,28055736,9
Department of Health,St. Helens&Knowsley Hospitals NHS Trust,30/09/2018,Mobile Phones,LEGAL SERVICES,VODAFONE LTD,28055736,36
Department of Health,St. Helens&Knowsley Hospitals NHS Trust,30/09/2018,Mobile Phones,MATERNITY THEATRES EMERGENCY WEEKDAYS,VODAFONE LTD,28055736,9
Department of Health,St. Helens&Knowsley Hospitals NHS Trust,30/09/2018,Mobile Phones,MEDIA + PUBLIC RELATIONS,VODAFONE LTD,28055736,72
Department of Health,St. Helens&Knowsley Hospitals NHS Trust,30/09/2018,Mobile Phones,MEDICAL CARE GROUP MGT,VODAFONE LTD,28055736,560.76
Department of Health,St. Helens&Knowsley Hospitals NHS Trust,30/09/2018,Mobile Phones,MERSEY DEANERY PROJECT,VODAFONE LTD,28055736,390.61
Department of Health,St. Helens&Knowsley Hospitals NHS Trust,30/09/2018,Mobile Phones,MGMT SPECIALIST MIDWIVES,VODAFONE LTD,28055736,416.06
Department of Health,St. Helens&Knowsley Hospitals NHS Trust,30/09/2018,Mobile Phones,MICROBIOLOGY DEPT,VODAFONE LTD,28055736,279
Department of Health,St. Helens&Knowsley Hospitals NHS Trust,30/09/2018,Mobile Phones,MICROBIOLOGY MED STAFF,VODAFONE LTD,28055736,72
Department of Health,St. Helens&Knowsley Hospitals NHS Trust,30/09/2018,Mobile Phones,NURSING ADMINISTRATION,VODAFONE LTD,28055736,522
Department of Health,St. Helens&Knowsley Hospitals NHS Trust,30/09/2018,Mobile Phones,OBS + GYNAE MEDICAL STAFF,VODAFONE LTD,28055736,106.8
Department of Health,St. Helens&Knowsley Hospitals NHS Trust,30/09/2018,Mobile Phones,OCCUPATIONAL HEALTH NURS,VODAFONE LTD,28055736,36
Department of Health,St. Helens&Knowsley Hospitals NHS Trust,30/09/2018,Mobile Phones,ORTHOPAEDIC MEDICAL STAFF,VODAFONE LTD,28055736,45
Department of Health,St. Helens&Knowsley Hospitals NHS Trust,30/09/2018,Mobile Phones,PAED SPECIALIST NURSES,VODAFONE LTD,28055736,184.07
Department of Health,St. Helens&Knowsley Hospitals NHS Trust,30/09/2018,Mobile Phones,PAEDIATRIC MEDICAL STAFF,VODAFONE LTD,28055736,9
Department of Health,St. Helens&Knowsley Hospitals NHS Trust,30/09/2018,Mobile Phones,PALLIATIVE CARE WHISTON,VODAFONE LTD,28055736,108
Department of Health,St. Helens&Knowsley Hospitals NHS Trust,30/09/2018,Mobile Phones,PATHOLOGY GENERAL,VODAFONE LTD,28055736,540.37
Department of Health,St. Helens&Knowsley Hospitals NHS Trust,30/09/2018,Mobile Phones,PATIENT ACCESS MGMT,VODAFONE LTD,28055736,72
Department of Health,St. Helens&Knowsley Hospitals NHS Trust,30/09/2018,Mobile Phones,PAYROLL SERVICES,VODAFONE LTD,28055736,392.4
Department of Health,St. Helens&Knowsley Hospitals NHS Trust,30/09/2018,Mobile Phones,PFI DESIGN + CONSTRUCTION,VODAFONE LTD,28055736,216
Department of Health,St. Helens&Knowsley Hospitals NHS Trust,30/09/2018,Mobile Phones,PHARMACY GENERAL,VODAFONE LTD,28055736,378.54
Department of Health,St. Helens&Knowsley Hospitals NHS Trust,30/09/2018,Mobile Phones,POST GRAD MEDICAL CENTRE,VODAFONE LTD,28055736,6.96
Department of Health,St. Helens&Knowsley Hospitals NHS Trust,30/09/2018,Mobile Phones,Patient Safety,VODAFONE LTD,28055736,63
Department of Health,St. Helens&Knowsley Hospitals NHS Trust,30/09/2018,Mobile Phones,Projects and Training,VODAFONE LTD,28055736,45
Department of Health,St. Helens&Knowsley Hospitals NHS Trust,30/09/2018,Mobile Phones,RADIOGRAPHY WHISTON,VODAFONE LTD,28055736,74.1
Department of Health,St. Helens&Knowsley Hospitals NHS Trust,30/09/2018,Mobile Phones,RADIOLOGY MEDICAL STAFF,VODAFONE LTD,28055736,72
Department of Health,St. Helens&Knowsley Hospitals NHS Trust,30/09/2018,Mobile Phones,RD&I,VODAFONE LTD,28055736,81
Department of Health,St. Helens&Knowsley Hospitals NHS Trust,30/09/2018,Mobile Phones,REABLEMENT TEAM,VODAFONE LTD,28055736,150.34
Department of Health,St. Helens&Knowsley Hospitals NHS Trust,30/09/2018,Mobile Phones,REGIONAL CANCER TRANSFORMATION,VODAFONE LTD,28055736,72.36
Department of Health,St. Helens&Knowsley Hospitals NHS Trust,30/09/2018,Mobile Phones,RESPIRATORY NURSING,VODAFONE LTD,28055736,117.5
Department of Health,St. Helens&Knowsley Hospitals NHS Trust,30/09/2018,Mobile Phones,RESPIRATORY SNR MEDICAL,VODAFONE LTD,28055736,270
Department of Health,St. Helens&Knowsley Hospitals NHS Trust,30/09/2018,Mobile Phones,SAFEGUARDING,VODAFONE LTD,28055736,260.21
Department of Health,St. Helens&Knowsley Hospitals NHS Trust,30/09/2018,Mobile Phones,SEPSIS,VODAFONE LTD,28055736,36
Department of Health,St. Helens&Knowsley Hospitals NHS Trust,30/09/2018,Mobile Phones,SERV INCR 4 TEACHING-SIFT,VODAFONE LTD,28055736,144
Department of Health,St. Helens&Knowsley Hospitals NHS Trust,30/09/2018,Mobile Phones,SEXUAL HEALTH,VODAFONE LTD,28055736,473.64
Department of Health,St. Helens&Knowsley Hospitals NHS Trust,30/09/2018,Mobile Phones,SEXUAL HEALTH CLINIC (GUM),VODAFONE LTD,28055736,72
Department of Health,St. Helens&Knowsley Hospitals NHS Trust,30/09/2018,Mobile Phones,SOHT Phlebotomy,VODAFONE LTD,28055736,108
Department of Health,St. Helens&Knowsley Hospitals NHS Trust,30/09/2018,Mobile Phones,SURGICAL CARE MANAGEMENT,VODAFONE LTD,28055736,405
Department of Health,St. Helens&Knowsley Hospitals NHS Trust,30/09/2018,Mobile Phones,SURGICAL CARE SECS,VODAFONE LTD,28055736,36
Department of Health,St. Helens&Knowsley Hospitals NHS Trust,30/09/2018,Mobile Phones,Service Delivery Infrastructure,VODAFONE LTD,28055736,"5,029.23"
Department of Health,St. Helens&Knowsley Hospitals NHS Trust,30/09/2018,Mobile Phones,Service Delivery Operations,VODAFONE LTD,28055736,36
Department of Health,St. Helens&Knowsley Hospitals NHS Trust,30/09/2018,Mobile Phones,Shared Care Record,VODAFONE LTD,28055736,741.6
Department of Health,St. Helens&Knowsley Hospitals NHS Trust,30/09/2018,Mobile Phones,THEATRES BURNS + PLASTICS,VODAFONE LTD,28055736,9
Department of Health,St. Helens&Knowsley Hospitals NHS Trust,30/09/2018,Mobile Phones,THEATRES DIRECTORATE MGT,VODAFONE LTD,28055736,193.7
Department of Health,St. Helens&Knowsley Hospitals NHS Trust,30/09/2018,Mobile Phones,THEATRES GEN SURGERY/UROL,VODAFONE LTD,28055736,18
Department of Health,St. Helens&Knowsley Hospitals NHS Trust,30/09/2018,Mobile Phones,THEATRES MAIN ST HELEN'S,VODAFONE LTD,28055736,9
Department of Health,St. Helens&Knowsley Hospitals NHS Trust,30/09/2018,Mobile Phones,THEATRES MATERNITY WH,VODAFONE LTD,28055736,9
Department of Health,St. Helens&Knowsley Hospitals NHS Trust,30/09/2018,Mobile Phones,THEATRES TRAU ORTHOPAEDIC,VODAFONE LTD,28055736,9.01
Department of Health,St. Helens&Knowsley Hospitals NHS Trust,30/09/2018,Mobile Phones,THERAPY MANAGEMENT & ADMIN.,VODAFONE LTD,28055736,117
Department of Health,St. Helens&Knowsley Hospitals NHS Trust,30/09/2018,Mobile Phones,TRAUMA ORTHOPAEDICS,VODAFONE LTD,28055736,36
Department of Health,St. Helens&Knowsley Hospitals NHS Trust,30/09/2018,Mobile Phones,UNIFIED COMMS PROJECT,VODAFONE LTD,28055736,59.2
Department of Health,St. Helens&Knowsley Hospitals NHS Trust,30/09/2018,Mobile Phones,UROLOGY MEDICAL STAFF,VODAFONE LTD,28055736,230.81
Department of Health,St. Helens&Knowsley Hospitals NHS Trust,30/09/2018,Mobile Phones,UROLOGY SUITE,VODAFONE LTD,28055736,81
Department of Health,St. Helens&Knowsley Hospitals NHS Trust,30/09/2018,Mobile Phones,Volunteers,VODAFONE LTD,28055736,36.36
Department of Health,St. Helens&Knowsley Hospitals NHS Trust,30/09/2018,Mobile Phones,WARD 1A FRAILTY,VODAFONE LTD,28055736,72
Department of Health,St. Helens&Knowsley Hospitals NHS Trust,30/09/2018,Mobile Phones,WARD 1C ACUTE MEDICAL UNIT,VODAFONE LTD,28055736,9
Department of Health,St. Helens&Knowsley Hospitals NHS Trust,30/09/2018,Mobile Phones,WARD 3A PLASTICS,VODAFONE LTD,28055736,72
Department of Health,St. Helens&Knowsley Hospitals NHS Trust,30/09/2018,Mobile Phones,WARD 3E GYNAECOLOGY,VODAFONE LTD,28055736,36
Department of Health,St. Helens&Knowsley Hospitals NHS Trust,30/09/2018,Mobile Phones,WARD 4D BURNS,VODAFONE LTD,28055736,36
Department of Health,St. Helens&Knowsley Hospitals NHS Trust,30/09/2018,Mobile Phones,WARD 5A CARE OF THE ELDERLY,VODAFONE LTD,28055736,9
Department of Health,St. Helens&Knowsley Hospitals NHS Trust,30/09/2018,Mobile Phones,WEST MIDLANDS PROJECT,VODAFONE LTD,28055736,360
Department of Health,St. Helens&Knowsley Hospitals NHS Trust,30/09/2018,Mobile Phones,WORKFORCE PLANNING,VODAFONE LTD,28055736,75.91
Department of Health,St. Helens&Knowsley Hospitals NHS Trust,30/09/2018,Mobile Phones,Womens OPD,VODAFONE LTD,28055736,9
Department of Health,St. Helens&Knowsley Hospitals NHS Trust,30/09/2018,NHS Local Debtors Adj,Balance Sheet,VODAFONE LTD,28055736,115.99
Department of Health,St. Helens&Knowsley Hospitals NHS Trust,30/09/2018,"Various Supplies,",Various Departments,NHS SUPPLY CHAIN,27873808,"117,824.55"
Department of Health,St. Helens&Knowsley Hospitals NHS Trust,30/09/2018,"Various Supplies,",Various Departments,NHS SUPPLY CHAIN,28055747,"150,049.79"
Department of Health,St. Helens&Knowsley Hospitals NHS Trust,30/09/2018,"Various Supplies,",Various Departments,NHS SUPPLY CHAIN,28055759,"148,065.45"
Department of Health,St. Helens&Knowsley Hospitals NHS Trust,30/09/2018,"Various Supplies,",Various Departments,NHS SUPPLY CHAIN,28120508,"147,374.01"
Department of Health,St. Helens&Knowsley Hospitals NHS Trust,30/09/2018,Office Equipment,Service Delivery Operations,CANON UK LTD,27886024,"36,240.96"
Department of Health,St. Helens&Knowsley Hospitals NHS Trust,30/09/2018,Other recvables - Current,Balance Sheet,VODAFONE LTD,28055736,36
Department of Health,St. Helens&Knowsley Hospitals NHS Trust,30/09/2018,Rates,RATES/WATER ST HELENS,ST HELENS COUNCIL,27928873,"63,033.00"
Department of Health,St. Helens&Knowsley Hospitals NHS Trust,30/09/2018,SrvcsRecd-FoundationTrust,A + E MEDICAL STAFF WH,NORTH WEST BOROUGHS HEALTHCARE NHS FOUNDATION TRUST,27896988,"79,404.00"
Department of Health,St. Helens&Knowsley Hospitals NHS Trust,30/09/2018,SrvcsRecd-FoundationTrust,COMMUNITY SLA'S,NORTH WEST BOROUGHS HEALTHCARE NHS FOUNDATION TRUST,27972246,"657,451.00"
Department of Health,St. Helens&Knowsley Hospitals NHS Trust,30/09/2018,Stocks Raw Materials,Balance Sheet,AAH PHARMACEUTICALS LTD,27722515,"118,372.36"
Department of Health,St. Helens&Knowsley Hospitals NHS Trust,30/09/2018,Stocks Raw Materials,Balance Sheet,AAH PHARMACEUTICALS LTD,28118702,"240,463.85"
Department of Health,St. Helens&Knowsley Hospitals NHS Trust,30/09/2018,Stocks Raw Materials,Balance Sheet,ALLIANCE HEALTHCARE DISTRIBUTION LTD,28118701,"151,215.70"
Department of Health,St. Helens&Knowsley Hospitals NHS Trust,30/09/2018,Stocks Raw Materials,Balance Sheet,ALLOGA UK LTD,28118703,"59,160.22"
Department of Health,St. Helens&Knowsley Hospitals NHS Trust,30/09/2018,Stocks Raw Materials,Balance Sheet,BAYER PLC,28054885,"26,220.00"
Department of Health,St. Helens&Knowsley Hospitals NHS Trust,30/09/2018,Stocks Raw Materials,Balance Sheet,HEALTHCARE AT HOME LTD,27897039,"145,809.80"
Department of Health,St. Helens&Knowsley Hospitals NHS Trust,30/09/2018,Stocks Raw Materials,Balance Sheet,HEALTHCARE AT HOME LTD,28118700,"229,107.28"
Department of Health,St. Helens&Knowsley Hospitals NHS Trust,30/09/2018,Stocks Raw Materials,Balance Sheet,NOVARTIS PHARMACEUTICALS UK LTD,27980762,"29,083.36"
Department of Health,St. Helens&Knowsley Hospitals NHS Trust,30/09/2018,Stocks Raw Materials,Balance Sheet,PHOENIX HEALTHCARE DISTRIBUTION LTD,28118704,"74,649.47"
Department of Health,St. Helens&Knowsley Hospitals NHS Trust,30/09/2018,VAT Cont Out Serv Inp Tax,Balance Sheet,EDDISONS COMMERCIAL PROPERTY MANAGEMENT LTD,28128652,"9,915.62"
Department of Health,St. Helens&Knowsley Hospitals NHS Trust,30/09/2018,VAT Trd/Bus Activ Out Tax,Balance Sheet,AAH PHARMACEUTICALS LTD,27722515,"-19,728.72"
Department of Health,St. Helens&Knowsley Hospitals NHS Trust,30/09/2018,Water,RATES/WATER WHISTON,WATER PLUS,27972218,"32,095.38"
Department of Health,St. Helens&Knowsley Hospitals NHS Trust,30/09/2018,Water,RATES/WATER WHISTON,WATER PLUS,27972219,"-37,063.65"
Department of Health,St. Helens&Knowsley Hospitals NHS Trust,30/09/2018,Water,RATES/WATER WHISTON,WATER PLUS,27972220,"-28,776.90"
Department of Health,St. Helens&Knowsley Hospitals NHS Trust,30/09/2018,Water,RATES/WATER WHISTON,WATER PLUS,27972221,"-32,439.28"
Department of Health,St. Helens&Knowsley Hospitals NHS Trust,30/09/2018,Water,RATES/WATER WHISTON,WATER PLUS,27972222,"-34,816.79"
Department of Health,St. Helens&Knowsley Hospitals NHS Trust,30/09/2018,Water,RATES/WATER WHISTON,WATER PLUS,27972223,"-29,206.83"
Department of Health,St. Helens&Knowsley Hospitals NHS Trust,30/09/2018,Water,RATES/WATER WHISTON,WATER PLUS,27972224,"36,425.34"
Department of Health,St. Helens&Knowsley Hospitals NHS Trust,30/09/2018,Water,RATES/WATER WHISTON,WATER PLUS,27972226,"-28,043.69"
Department of Health,St. Helens&Knowsley Hospitals NHS Trust,30/09/2018,Water,RATES/WATER WHISTON,WATER PLUS,27972227,"-33,276.47"
Department of Health,St. Helens&Knowsley Hospitals NHS Trust,30/09/2018,Water,RATES/WATER WHISTON,WATER PLUS,27972229,"34,619.44"
Department of Health,St. Helens&Knowsley Hospitals NHS Trust,30/09/2018,Water,RATES/WATER WHISTON,WATER PLUS,27972230,"-35,558.82"
Department of Health,St. Helens&Knowsley Hospitals NHS Trust,30/09/2018,Water,RATES/WATER WHISTON,WATER PLUS,27972231,"-51,121.00"
Department of Health,St. Helens&Knowsley Hospitals NHS Trust,30/09/2018,Water,RATES/WATER WHISTON,WATER PLUS,27972232,"30,067.82"
Department of Health,St. Helens&Knowsley Hospitals NHS Trust,30/09/2018,Water,RATES/WATER WHISTON,WATER PLUS,27972233,"31,338.94"
Department of Health,St. Helens&Knowsley Hospitals NHS Trust,30/09/2018,Water,RATES/WATER WHISTON,WATER PLUS,27972234,"26,932.97"
Department of Health,St. Helens&Knowsley Hospitals NHS Trust,30/09/2018,Water,RATES/WATER WHISTON,WATER PLUS,27972235,"32,494.26"
Department of Health,St. Helens&Knowsley Hospitals NHS Trust,30/09/2018,Water,RATES/WATER WHISTON,WATER PLUS,27972237,"-29,135.78"
Department of Health,St. Helens&Knowsley Hospitals NHS Trust,30/09/2018,Water,RATES/WATER WHISTON,WATER PLUS,27972238,"33,584.29"
Department of Health,St. Helens&Knowsley Hospitals NHS Trust,30/09/2018,Water,RATES/WATER WHISTON,WATER PLUS,27972239,"-34,555.24"
Department of Health,St. Helens&Knowsley Hospitals NHS Trust,30/09/2018,Water,RATES/WATER WHISTON,WATER PLUS,27972240,"-33,625.87"
Department of Health,St. Helens&Knowsley Hospitals NHS Trust,30/09/2018,Water,RATES/WATER WHISTON,WATER PLUS,27972251,"33,436.89"
Department of Health,St. Helens&Knowsley Hospitals NHS Trust,30/09/2018,Water,RATES/WATER WHISTON,WATER PLUS,27972252,"29,744.39"
Department of Health,St. Helens&Knowsley Hospitals NHS Trust,30/09/2018,Water,RATES/WATER WHISTON,WATER PLUS,27972253,"29,190.22"
Department of Health,St. Helens&Knowsley Hospitals NHS Trust,30/09/2018,Water,RATES/WATER WHISTON,WATER PLUS,27972254,"34,308.18"
Department of Health,St. Helens&Knowsley Hospitals NHS Trust,30/09/2018,Water,RATES/WATER WHISTON,WATER PLUS,27972255,"39,827.44"
Department of Health,St. Helens&Knowsley Hospitals NHS Trust,30/09/2018,Water,RATES/WATER WHISTON,WATER PLUS,27972256,"34,437.76"
Department of Health,St. Helens&Knowsley Hospitals NHS Trust,30/09/2018,Water,RATES/WATER WHISTON,WATER PLUS,27972274,"33,934.26"
